[Event "FIDE WCCC G12 2018"]
[Site "Santiago de Compostela"]
[Date "2018.11.15"]
[Round "11"]
[White "Berezovsky, Fiorina"]
[Black "Francisco Guecamburu, Candela Be"]
[Result "1/2-1/2"]
[ECO "D02"]
[WhiteElo "1492"]
[BlackElo "1725"]
[Annotator "NA"]
[PlyCount "88"]
[EventDate "2018.11.04"]
[EventType "swiss"]
[EventCountry "ESP"]
[SourceTitle "playchess.com"]
[Source "ChessBase"]
[SourceQuality "1"]
[TimeControl "40/5400+30:1800+30"]

1. d4 {[%emt 0:00:00]} d5 {[%emt 0:00:00]} 2. Nf3 {[%emt 0:00:17]} Nf6 {[%emt 0:00:00]} 3. c4 {[%emt 0:01:08]} e6 {[%emt 0:00:09]} 4. g3 {[%emt 0:00:31]} dxc4 {[%emt 0:01:45]} 5. Qa4+ {[%emt 0:01:01]} Bd7 {[%emt 0:01:32]} 6. Qxc4 {[%emt 0:00:25]} Bc6 {[%emt 0:00:17]} 7. Bg2 {[%emt 0:01:03]} Bd5 {[%emt 0:02:27]} 8. Qa4+ {[%emt 0:03:32]} Qd7 {[%emt 0:02:35]} 9. Qxd7+ {[%emt 0:04:39]} Nbxd7 {[%emt 0:00:07]} 10. Nc3 {[%emt 0:01:19]} c6 {[%emt 0:04:41]} 11. O-O {[%emt 0:02:17]} Be7 {[%emt 0:00:49]} 12. Re1 {[%emt 0:04:22]} Bxf3 {[%emt 0:01:21]} 13. Bxf3 {[%emt 0:04:51]} Nb6 {[%emt 0:08:55]} 14. e4 {[%emt 0:02:03]} Rd8 {[%emt 0:01:55]} 15. Be3 {[%emt 0:01:04]} O-O {[%emt 0:02:19]} 16. b3 {[%emt 0:03:53]} Bb4 {[%emt 0:05:27]} 17. Rec1 {[%emt 0:00:29]} Ba3 {[%emt 0:04:24]} 18. Rc2 {[%emt 0:02:47]} Rd7 {[%emt 0:02:27]} 19. Rd1 {[%emt 0:03:51]} Rfd8 {[%emt 0:01:00]} 20. Kf1 {[%emt 0:09:58]} Bb4 {[%emt 0:03:18]} 21. Ke2 {[%emt 0:03:54]} Kf8 {[%emt 0:02:30]} 22. h3 {[%emt 0:00:58]} Ke8 {[%emt 0:01:29]} 23. Bg2 {[%emt 0:01:23]} e5 {[%emt 0:05:39]} 24. dxe5 {[%emt 0:02:46]} Bxc3 {[%emt 0:00:07]} 25. Rxd7 {[%emt 0:00:17]} Nfxd7 {[%emt 0:00:14]} 26. Rxc3 {[%emt 0:00:21]} Nxe5 {[%emt 0:00:10]} 27. f4 {[%emt 0:00:32]} Ng6 {[%emt 0:00:43]} 28. h4 {[%emt 0:01:35]} Nd7 {[%emt 0:04:37]} 29. h5 {[%emt 0:01:28]} Ne7 {[%emt 0:00:18]} 30. g4 {[%emt 0:01:07]} b6 {[%emt 0:02:52]} 31. g5 {[%emt 0:01:59]} c5 {[%emt 0:00:24]} 32. Kf2 {[%emt 0:03:03]} Nb8 {[%emt 0:02:30]} 33. f5 {[%emt 0:03:44]} g6 {[%emt 0:03:42]} 34. f6 {[%emt 0:02:32]} Nec6 {[%emt 0:00:28]} 35. hxg6 {[%emt 0:01:21]} hxg6 {[%emt 0:00:19]} 36. Rc1 {[%emt 0:00:29]} Kf8 {[%emt 0:00:11]} 37. Bf4 {[%emt 0:01:51]} Kg8 {[%emt 0:02:38]} 38. e5 {[%emt 0:00:38]} Nb4 {[%emt 0:02:24]} 39. Bf1 {[%emt 0:01:50]} N8c6 {[%emt 0:00:41]} 40. a4 {[%emt 0:00:00]} Nd3+ {[%emt 0:00:00]} 41. Bxd3 Rxd3 42. e6 fxe6 43. Rh1 Kf7 44. Rh6 Kg8 1/2-1/2

[Event "FIDE WCCC G12 2018"]
[Site "Santiago de Compostela"]
[Date "2018.11.15"]
[Round "11"]
[White "Gulieva, Karina"]
[Black "Eswaran, Aksithi"]
[Result "1/2-1/2"]
[ECO "A00"]
[WhiteElo "1475"]
[BlackElo "1760"]
[Annotator "NA"]
[PlyCount "99"]
[EventDate "2018.11.04"]
[EventType "swiss"]
[EventCountry "ESP"]
[SourceTitle "playchess.com"]
[Source "ChessBase"]
[SourceQuality "1"]
[TimeControl "40/5400+30:1800+30"]

1. Nh3 {[%emt 0:00:00]} e5 {[%emt 0:00:00]} 2. d4 {[%emt 0:00:00]} exd4 {[%emt 0:00:00]} 3. Qxd4 {[%emt 0:00:00]} Nc6 {[%emt 0:00:00]} 4. Qe3+ {[%emt 0:00:00]} Be7 {[%emt 0:02:32]} 5. g3 {[%emt 0:01:03]} Nf6 {[%emt 0:00:45]} 6. Bg2 {[%emt 0:00:12]} O-O {[%emt 0:01:32]} 7. O-O {[%emt 0:00:07]} d5 {[%emt 0:09:20]} 8. Nf4 {[%emt 0:04:55]} Nb4 {[%emt 0:12:22]} 9. Qd2 {[%emt 0:02:39]} Bf5 {[%emt 0:02:08]} 10. Na3 {[%emt 0:02:30]} c6 {[%emt 0:04:09]} 11. c3 {[%emt 0:02:12]} Na6 {[%emt 0:00:08]} 12. Nc2 {[%emt 0:00:03]} Ne4 {[%emt 0:06:43]} 13. Qd1 {[%emt 0:01:02]} Re8 {[%emt 0:13:30]} 14. Ne3 {[%emt 0:03:22]} Nd6 {[%emt 0:10:15]} 15. Nxf5 {[%emt 0:06:31]} Nxf5 {[%emt 0:00:09]} 16. e4 {[%emt 0:00:48]} dxe4 {[%emt 0:03:29]} 17. Bxe4 {[%emt 0:01:45]} Nd6 {[%emt 0:00:23]} 18. Bg2 {[%emt 0:00:12]} Bf8 {[%emt 0:01:57]} 19. Qc2 {[%emt 0:02:26]} Qc7 {[%emt 0:00:49]} 20. Nh3 {[%emt 0:05:55]} Nc5 {[%emt 0:07:28]} 21. Be3 {[%emt 0:00:30]} Ne6 {[%emt 0:00:30]} 22. Ng5 {[%emt 0:03:11]} Nxg5 {[%emt 0:01:51]} 23. Bxg5 {[%emt 0:00:03]} Qa5 {[%emt 0:07:16]} 24. Bf4 {[%emt 0:00:57]} Qb5 {[%emt 0:04:17]} 25. Rfe1 {[%emt 0:01:50]} Rxe1+ {[%emt 0:03:31]} 26. Rxe1 {[%emt 0:00:04]} Re8 {[%emt 0:00:32]} 27. Rxe8 {[%emt 0:00:11]} Nxe8 {[%emt 0:00:03]} 28. Bf1 {[%emt 0:01:04]} Qd5 {[%emt 0:00:53]} 29. c4 {[%emt 0:01:07]} Qd7 {[%emt 0:01:39]} 30. Bd3 {[%emt 0:00:57]} g6 {[%emt 0:00:37]} 31. Be3 {[%emt 0:00:29]} b6 {[%emt 0:00:43]} 32. Be4 {[%emt 0:00:40]} c5 {[%emt 0:00:26]} 33. Qd3 {[%emt 0:00:58]} Qxd3 {[%emt 0:01:29]} 34. Bxd3 {[%emt 0:04:25]} Bd6 {[%emt 0:00:14]} 35. Bd2 {[%emt 0:01:16]} Nf6 {[%emt 0:00:57]} 36. a3 {[%emt 0:00:41]} Nd7 {[%emt 0:00:31]} 37. f4 {[%emt 0:03:22]} Be7 {[%emt 0:04:28]} 38. Bc3 {[%emt 0:00:21]} Kf8 {[%emt 0:00:38]} 39. f5 {[%emt 0:00:22]} Bf6 {[%emt 0:00:38]} 40. Bxf6 {[%emt 0:00:00]} Nxf6 {[%emt 0:00:00]} 41. h3 {[%emt 0:01:18]} Ke7 {[%emt 0:00:27]} 42. g4 {[%emt 0:00:23]} Kd6 {[%emt 0:00:12]} 43. Kf2 {[%emt 0:00:26]} Ke5 {[%emt 0:02:22]} 44. Ke3 {[%emt 0:00:11]} g5 {[%emt 0:04:30]} 45. b4 {[%emt 0:00:28]} h5 {[%emt 0:03:11]} 46. Be2 {[%emt 0:03:20]} hxg4 {[%emt 0:00:16]} 47. hxg4 {[%emt 0:00:14]} a5 {[%emt 0:01:12]} 48. bxa5 {[%emt 0:00:16]} bxa5 {[%emt 0:00:05]} 49. Bd1 {[%emt 0:01:09]} Nd7 {[%emt 0:00:13]} 50. Ba4 {[%emt 0:01:12]} 1/2-1/2